[Event "Titled Tuesday Blitz December 7 2021"]
[White "Gelman, Alexander"]
[Black "Marcziter, Dmitrii"]
[WhiteFideId "4118316"]
[BlackFideId "13900765"]
[WhiteElo "2375"]
[BlackElo "2155"]
[Result "1-0"]
[Round "03"]
[TimeControl "180+1"]
[Date "2021.12.07"]
[WhiteClock "0:01:11"]
[BlackClock "0:01:02"]

1. d4 {[%clk 0:03:00]}  d5 {[%clk 0:02:59]} 2. Nc3 {[%clk 0:03:01]}  c6 {[%clk 0:02:55]} 3. Bf4 {[%clk 0:03:01]}  Bf5 {[%clk 0:02:53]} 4. f3 {[%clk 0:03:01]}  Qb6 {[%clk 0:02:52]} 5. Qd2 {[%clk 0:03:00]}  Nf6 {[%clk 0:02:50]} 6. O-O-O {[%clk 0:03:00]}  Nbd7 {[%clk 0:02:44]} 7. g4 {[%clk 0:02:59]}  Bg6 {[%clk 0:02:42]} 8. h4 {[%clk 0:03:00]}  h5 {[%clk 0:02:41]} 9. g5 {[%clk 0:03:00]}  Ng8 {[%clk 0:02:38]} 10. e4 {[%clk 0:03:01]}  e6 {[%clk 0:02:38]} 11. a3 {[%clk 0:02:30]}  Ne7 {[%clk 0:02:29]} 12. Nh3 {[%clk 0:02:22]}  O-O-O {[%clk 0:02:21]} 13. Bg3 {[%clk 0:02:15]}  dxe4 {[%clk 0:02:14]} 14. Na4 {[%clk 0:02:13]}  e3 {[%clk 0:02:07]} 15. Nxb6+ {[%clk 0:02:13]}  Nxb6 {[%clk 0:02:07]} 16. Qxe3 {[%clk 0:02:13]}  Ned5 {[%clk 0:02:05]} 17. Qe1 {[%clk 0:02:06]}  c5 {[%clk 0:02:04]} 18. Qa5 {[%clk 0:02:04]}  cxd4 {[%clk 0:01:54]} 19. Qxa7 {[%clk 0:02:02]}  Bd6 {[%clk 0:01:54]} 20. Bxd6 {[%clk 0:02:01]}  Rxd6 {[%clk 0:01:53]} 21. Rxd4 {[%clk 0:01:58]}  Rhd8 {[%clk 0:01:49]} 22. Bd3 {[%clk 0:01:51]}  Bxd3 {[%clk 0:01:42]} 23. Rxd3 {[%clk 0:01:51]}  g6 {[%clk 0:01:40]} 24. Rhd1 {[%clk 0:01:50]}  Rc6 {[%clk 0:01:38]} 25. Nf4 {[%clk 0:01:45]}  Kc7 {[%clk 0:01:38]} 26. Nxd5+ {[%clk 0:01:44]}  exd5 {[%clk 0:01:37]} 27. Qa5 {[%clk 0:01:42]}  Kb8 {[%clk 0:01:32]} 28. Rxd5 {[%clk 0:01:28]}  Rdc8 {[%clk 0:01:29]} 29. Rd8 {[%clk 0:01:20]}  Rxc2+ {[%clk 0:01:25]} 30. Kb1 {[%clk 0:01:20]}  Rc6 {[%clk 0:01:11]} 31. Rxc8+ {[%clk 0:01:19]}  Kxc8 {[%clk 0:01:12]} 32. Qe5 {[%clk 0:01:16]}  Re6 {[%clk 0:01:07]} 33. Qc5+ {[%clk 0:01:12]}  Rc6 {[%clk 0:01:02]} 34. Qf8+ {[%clk 0:01:11]}  Kc7 {[%clk 0:01:02]} 35. Qd8# {[%clk 0:01:11]} 1-0


[Site "https://www.chess.com"]

[Event "Titled Tuesday Blitz December 7 2021"]
[White "Guz, Ari"]
[Black "Moskalenko, Alexander"]
[WhiteFideId "2825759"]
[BlackFideId "4155351"]
[WhiteElo "1913"]
[BlackElo "2515"]
[Result "1/2-1/2"]
[Round "03"]
[TimeControl "180+1"]
[Date "2021.12.07"]
[WhiteClock "0:00:06"]
[BlackClock "0:00:10"]

1. b3 {[%clk 0:03:00]}  e6 {[%clk 0:03:00]} 2. Bb2 {[%clk 0:03:00]}  d5 {[%clk 0:03:01]} 3. g3 {[%clk 0:03:01]}  Nf6 {[%clk 0:03:01]} 4. Bg2 {[%clk 0:03:02]}  Be7 {[%clk 0:03:02]} 5. Nf3 {[%clk 0:03:02]}  b6 {[%clk 0:03:03]} 6. O-O {[%clk 0:03:02]}  Bb7 {[%clk 0:03:03]} 7. c4 {[%clk 0:03:02]}  O-O {[%clk 0:03:04]} 8. d3 {[%clk 0:03:01]}  c5 {[%clk 0:03:04]} 9. cxd5 {[%clk 0:03:01]}  Nxd5 {[%clk 0:03:04]} 10. Nbd2 {[%clk 0:03:00]}  Bf6 {[%clk 0:03:03]} 11. Qc2 {[%clk 0:02:55]}  Nd7 {[%clk 0:03:03]} 12. a3 {[%clk 0:02:54]}  a5 {[%clk 0:02:57]} 13. Ne4 {[%clk 0:02:51]}  Bxb2 {[%clk 0:02:57]} 14. Qxb2 {[%clk 0:02:51]}  N7f6 {[%clk 0:02:57]} 15. Ne5 {[%clk 0:02:42]}  Qc7 {[%clk 0:02:38]} 16. Rac1 {[%clk 0:02:38]}  Rfc8 {[%clk 0:02:37]} 17. Rfd1 {[%clk 0:02:25]}  Nxe4 {[%clk 0:02:34]} 18. Bxe4 {[%clk 0:02:12]}  Nf6 {[%clk 0:02:33]} 19. Bxb7 {[%clk 0:02:09]}  Qxb7 {[%clk 0:02:34]} 20. Nc4 {[%clk 0:02:09]}  Rd8 {[%clk 0:02:25]} 21. a4 {[%clk 0:02:03]}  Rd5 {[%clk 0:02:18]} 22. Ne3 {[%clk 0:01:51]}  Rd4 {[%clk 0:02:11]} 23. Rc4 {[%clk 0:01:23]}  Rd7 {[%clk 0:02:11]} 24. Ng4 {[%clk 0:01:10]}  Nd5 {[%clk 0:01:59]} 25. Ne5 {[%clk 0:01:07]}  Rdd8 {[%clk 0:01:59]} 26. d4 {[%clk 0:01:01]}  Nb4 {[%clk 0:01:55]} 27. Rdc1 {[%clk 0:00:57]}  f6 {[%clk 0:01:47]} 28. Nf3 {[%clk 0:00:52]}  cxd4 {[%clk 0:01:46]} 29. Rxd4 {[%clk 0:00:52]}  e5 {[%clk 0:01:45]} 30. Rdc4 {[%clk 0:00:49]}  Rd7 {[%clk 0:01:42]} 31. Nh4 {[%clk 0:00:40]}  Rad8 {[%clk 0:01:39]} 32. f3 {[%clk 0:00:36]}  g6 {[%clk 0:01:17]} 33. Qb1 {[%clk 0:00:36]}  Kg7 {[%clk 0:01:12]} 34. Ng2 {[%clk 0:00:33]}  Qd5 {[%clk 0:01:05]} 35. Rc7 {[%clk 0:00:27]}  Qe6 {[%clk 0:00:57]} 36. Rxd7+ {[%clk 0:00:27]}  Rxd7 {[%clk 0:00:58]} 37. Ne3 {[%clk 0:00:24]}  Rd2 {[%clk 0:00:53]} 38. Rc7+ {[%clk 0:00:21]}  Kg8 {[%clk 0:00:53]} 39. Qc1 {[%clk 0:00:20]}  Rd7 {[%clk 0:00:49]} 40. Rc8+ {[%clk 0:00:19]}  Kg7 {[%clk 0:00:48]} 41. Ng4 {[%clk 0:00:19]}  g5 {[%clk 0:00:44]} 42. Rc7 {[%clk 0:00:20]}  e4 {[%clk 0:00:41]} 43. Rxd7+ {[%clk 0:00:18]}  Qxd7 {[%clk 0:00:42]} 44. Qc3 {[%clk 0:00:17]}  Qe6 {[%clk 0:00:39]} 45. Qc7+ {[%clk 0:00:15]}  Kg6 {[%clk 0:00:39]} 46. Qd8 {[%clk 0:00:08]}  Qxb3 {[%clk 0:00:31]} 47. Qf8 {[%clk 0:00:07]}  h5 {[%clk 0:00:13]} 48. Qxf6+ {[%clk 0:00:04]}  Kh7 {[%clk 0:00:13]} 49. Qe7+ {[%clk 0:00:05]}  Kg6 {[%clk 0:00:09]} 50. Qf6+ {[%clk 0:00:05]}  Kh7 {[%clk 0:00:10]} 51. Qe7+ {[%clk 0:00:06]}  Kg6 {[%clk 0:00:10]} 52. Qf6+ {[%clk 0:00:06]} 1/2-1/2


[Site "https://www.chess.com"]

[Event "Titled Tuesday Blitz December 7 2021"]
[White "Harris, Ian"]
[Black "Kozionov, Kirill"]
[WhiteFideId "2020092"]
[BlackFideId "24101729"]
[WhiteElo "2339"]
[BlackElo "2426"]
[Result "0-1"]
[Round "03"]
[TimeControl "180+1"]
[Date "2021.12.07"]
[WhiteClock "0:00:12"]
[BlackClock "0:00:05"]

1. e4 {[%clk 0:03:00]}  c5 {[%clk 0:02:59]} 2. d4 {[%clk 0:02:57]}  cxd4 {[%clk 0:02:59]} 3. Nf3 {[%clk 0:02:57]}  d6 {[%clk 0:02:58]} 4. c3 {[%clk 0:02:58]}  dxc3 {[%clk 0:02:56]} 5. Nxc3 {[%clk 0:02:58]}  Nf6 {[%clk 0:02:49]} 6. Bc4 {[%clk 0:02:55]}  e6 {[%clk 0:02:49]} 7. O-O {[%clk 0:02:54]}  Be7 {[%clk 0:02:49]} 8. Qe2 {[%clk 0:02:54]}  O-O {[%clk 0:02:43]} 9. Rd1 {[%clk 0:02:54]}  Qa5 {[%clk 0:02:37]} 10. Nb5 {[%clk 0:02:29]}  d5 {[%clk 0:01:27]} 11. exd5 {[%clk 0:02:14]}  exd5 {[%clk 0:01:28]} 12. Bxd5 {[%clk 0:01:32]}  Nxd5 {[%clk 0:01:22]} 13. Rxd5 {[%clk 0:01:32]}  Be6 {[%clk 0:01:20]} 14. Bd2 {[%clk 0:01:12]}  Qa6 {[%clk 0:00:53]} 15. Re5 {[%clk 0:01:07]}  Nd7 {[%clk 0:00:51]} 16. Nc7 {[%clk 0:01:03]}  Qd6 {[%clk 0:00:25]} 17. Bf4 {[%clk 0:00:49]}  Nxe5 {[%clk 0:00:17]} 18. Bxe5 {[%clk 0:00:49]}  Qb6 {[%clk 0:00:11]} 19. Nxa8 {[%clk 0:00:48]}  Rxa8 {[%clk 0:00:12]} 20. Bd4 {[%clk 0:00:47]}  Qc7 {[%clk 0:00:10]} 21. h3 {[%clk 0:00:44]}  b6 {[%clk 0:00:09]} 22. a3 {[%clk 0:00:44]}  Rd8 {[%clk 0:00:09]} 23. Bc3 {[%clk 0:00:45]}  h6 {[%clk 0:00:08]} 24. Re1 {[%clk 0:00:45]}  Bf8 {[%clk 0:00:08]} 25. Nd4 {[%clk 0:00:44]}  Bc4 {[%clk 0:00:07]} 26. Qe5 {[%clk 0:00:44]}  Qxe5 {[%clk 0:00:07]} 27. Rxe5 {[%clk 0:00:45]}  Bd6 {[%clk 0:00:07]} 28. Re3 {[%clk 0:00:45]}  Bc5 {[%clk 0:00:07]} 29. Re4 {[%clk 0:00:45]}  Bd3 {[%clk 0:00:07]} 30. Re3 {[%clk 0:00:44]}  Bg6 {[%clk 0:00:06]} 31. Nc6 {[%clk 0:00:36]}  Rd7 {[%clk 0:00:04]} 32. Re8+ {[%clk 0:00:34]}  Kh7 {[%clk 0:00:05]} 33. Ne5 {[%clk 0:00:34]}  Rd1+ {[%clk 0:00:05]} 34. Kh2 {[%clk 0:00:34]}  f6 {[%clk 0:00:03]} 35. Nxg6 {[%clk 0:00:30]}  Kxg6 {[%clk 0:00:04]} 36. Re2 {[%clk 0:00:30]}  a5 {[%clk 0:00:04]} 37. Kg3 {[%clk 0:00:30]}  a4 {[%clk 0:00:04]} 38. Kf3 {[%clk 0:00:30]}  Rd3+ {[%clk 0:00:03]} 39. Ke4 {[%clk 0:00:28]}  Rd7 {[%clk 0:00:04]} 40. Kf3 {[%clk 0:00:27]}  h5 {[%clk 0:00:03]} 41. g3 {[%clk 0:00:27]}  Kf5 {[%clk 0:00:03]} 42. g4+ {[%clk 0:00:27]}  hxg4+ {[%clk 0:00:04]} 43. hxg4+ {[%clk 0:00:28]}  Kg6 {[%clk 0:00:04]} 44. Kg3 {[%clk 0:00:27]}  Rd3+ {[%clk 0:00:04]} 45. f3 {[%clk 0:00:27]}  Rd1 {[%clk 0:00:04]} 46. Re1 {[%clk 0:00:25]}  Rd5 {[%clk 0:00:03]} 47. Re2 {[%clk 0:00:24]}  b5 {[%clk 0:00:03]} 48. Rd2 {[%clk 0:00:22]}  Rxd2 {[%clk 0:00:03]} 49. Bxd2 {[%clk 0:00:23]}  Bd4 {[%clk 0:00:03]} 50. Bc1 {[%clk 0:00:19]}  Kf7 {[%clk 0:00:02]} 51. Kf4 {[%clk 0:00:20]}  Ke6 {[%clk 0:00:02]} 52. Ke4 {[%clk 0:00:20]}  Bb6 {[%clk 0:00:02]} 53. Kd3 {[%clk 0:00:20]}  Kd5 {[%clk 0:00:02]} 54. Bd2 {[%clk 0:00:20]}  Bc5 {[%clk 0:00:02]} 55. Kc3 {[%clk 0:00:19]}  Bd4+ {[%clk 0:00:02]} 56. Kc2 {[%clk 0:00:18]}  Kc4 {[%clk 0:00:02]} 57. Bc1 {[%clk 0:00:18]}  g6 {[%clk 0:00:02]} 58. Bd2 {[%clk 0:00:17]}  Be5 {[%clk 0:00:03]} 59. Be3 {[%clk 0:00:16]}  Bd6 {[%clk 0:00:03]} 60. Bd2 {[%clk 0:00:16]}  Be7 {[%clk 0:00:03]} 61. Be3 {[%clk 0:00:16]}  Bd8 {[%clk 0:00:03]} 62. Bd2 {[%clk 0:00:17]}  Bc7 {[%clk 0:00:04]} 63. Be3 {[%clk 0:00:17]}  Bd6 {[%clk 0:00:04]} 64. Bd2 {[%clk 0:00:18]}  Bc5 {[%clk 0:00:05]} 65. Bc3 {[%clk 0:00:17]}  f5 {[%clk 0:00:05]} 66. gxf5 {[%clk 0:00:17]}  gxf5 {[%clk 0:00:05]} 67. Bd2 {[%clk 0:00:18]}  Bd4 {[%clk 0:00:05]} 68. Bc1 {[%clk 0:00:17]}  Bg7 {[%clk 0:00:05]} 69. Bd2 {[%clk 0:00:18]}  Bf6 {[%clk 0:00:05]} 70. Be3 {[%clk 0:00:18]}  Kd5 {[%clk 0:00:05]} 71. b3 {[%clk 0:00:16]}  Be7 {[%clk 0:00:04]} 72. bxa4 {[%clk 0:00:16]}  bxa4 {[%clk 0:00:04]} 73. Bc1 {[%clk 0:00:15]}  Kd4 {[%clk 0:00:04]} 74. f4 {[%clk 0:00:13]}  Ke4 {[%clk 0:00:03]} 75. Kc3 {[%clk 0:00:13]}  Bd6 {[%clk 0:00:03]} 76. Kc4 {[%clk 0:00:13]}  Bxf4 {[%clk 0:00:03]} 77. Bb2 {[%clk 0:00:13]}  Bd2 {[%clk 0:00:02]} 78. Kb5 {[%clk 0:00:13]}  f4 {[%clk 0:00:03]} 79. Kc5 {[%clk 0:00:11]}  f3 {[%clk 0:00:03]} 80. Bd4 {[%clk 0:00:12]}  Be3 {[%clk 0:00:03]} 81. Bxe3 {[%clk 0:00:10]}  Kxe3 {[%clk 0:00:04]} 82. Kb4 {[%clk 0:00:11]}  f2 {[%clk 0:00:05]} 83. Kxa4 {[%clk 0:00:12]}  f1=Q {[%clk 0:00:05]} 0-1


[Site "https://www.chess.com"]

[Event "Titled Tuesday Blitz December 7 2021"]
[White "Ivanchuk, Vasyl"]
[Black "Baskin, Robert"]
[WhiteFideId "14100010"]
[BlackFideId "24662402"]
[WhiteElo "2710"]
[BlackElo "2488"]
[Result "1-0"]
[Round "03"]
[TimeControl "180+1"]
[Date "2021.12.07"]
[WhiteClock "0:00:18"]
[BlackClock "0:00:01"]

1. d4 {[%clk 0:03:00]}  Nf6 {[%clk 0:02:54]} 2. c4 {[%clk 0:03:00]}  g6 {[%clk 0:02:54]} 3. Nc3 {[%clk 0:02:59]}  d5 {[%clk 0:02:53]} 4. Bf4 {[%clk 0:02:59]}  Bg7 {[%clk 0:02:52]} 5. e3 {[%clk 0:02:59]}  O-O {[%clk 0:02:51]} 6. Qb3 {[%clk 0:02:58]}  c5 {[%clk 0:02:07]} 7. cxd5 {[%clk 0:02:54]}  cxd4 {[%clk 0:02:06]} 8. exd4 {[%clk 0:02:54]}  Nbd7 {[%clk 0:02:05]} 9. Be2 {[%clk 0:02:53]}  Nb6 {[%clk 0:02:01]} 10. Bf3 {[%clk 0:02:53]}  Bg4 {[%clk 0:01:59]} 11. Bxg4 {[%clk 0:02:51]}  Nxg4 {[%clk 0:01:59]} 12. Nf3 {[%clk 0:02:51]}  Nf6 {[%clk 0:01:58]} 13. d6 {[%clk 0:02:51]}  exd6 {[%clk 0:01:57]} 14. O-O {[%clk 0:02:51]}  Re8 {[%clk 0:01:52]} 15. a4 {[%clk 0:02:32]}  Qd7 {[%clk 0:01:31]} 16. a5 {[%clk 0:02:29]}  Nc8 {[%clk 0:01:31]} 17. h3 {[%clk 0:01:20]}  Ne7 {[%clk 0:01:28]} 18. a6 {[%clk 0:01:13]}  bxa6 {[%clk 0:01:26]} 19. Rxa6 {[%clk 0:01:13]}  Nf5 {[%clk 0:00:23]} 20. g4 {[%clk 0:01:11]}  Rab8 {[%clk 0:00:11]} 21. Qa2 {[%clk 0:01:09]}  Nxg4 {[%clk 0:00:11]} 22. hxg4 {[%clk 0:00:40]}  Nxd4 {[%clk 0:00:10]} 23. Nxd4 {[%clk 0:00:33]}  Qxg4+ {[%clk 0:00:10]} 24. Bg3 {[%clk 0:00:33]}  Bxd4 {[%clk 0:00:09]} 25. Kg2 {[%clk 0:00:33]}  Bxc3 {[%clk 0:00:05]} 26. bxc3 {[%clk 0:00:30]}  Re2 {[%clk 0:00:04]} 27. Qd5 {[%clk 0:00:26]}  h5 {[%clk 0:00:04]} 28. Qf3 {[%clk 0:00:21]}  Qc4 {[%clk 0:00:03]} 29. Rxd6 {[%clk 0:00:19]}  h4 {[%clk 0:00:03]} 30. Rd4 {[%clk 0:00:19]}  Rxf2+ {[%clk 0:00:01]} 31. Rxf2 {[%clk 0:00:18]} 1-0


[Site "https://www.chess.com"]

[Event "Titled Tuesday Blitz December 7 2021"]
[White "Kadam, Om Manish"]
[Black "Perrine, Dalton"]
[WhiteFideId "45076294"]
[BlackFideId "2048434"]
[WhiteElo "1729"]
[BlackElo "2418"]
[Result "0-1"]
[Round "03"]
[TimeControl "180+1"]
[Date "2021.12.07"]
[WhiteClock "0:00:28"]
[BlackClock "0:00:20"]

1. e4 {[%clk 0:03:00]}  c5 {[%clk 0:02:59]} 2. Nf3 {[%clk 0:03:00]}  e6 {[%clk 0:02:59]} 3. d4 {[%clk 0:03:00]}  cxd4 {[%clk 0:03:00]} 4. Nxd4 {[%clk 0:03:01]}  Nf6 {[%clk 0:03:01]} 5. Nc3 {[%clk 0:03:01]}  Nc6 {[%clk 0:03:01]} 6. Be3 {[%clk 0:03:02]}  Bb4 {[%clk 0:03:01]} 7. Bd3 {[%clk 0:03:02]}  d5 {[%clk 0:03:01]} 8. Nxc6 {[%clk 0:03:01]}  bxc6 {[%clk 0:03:02]} 9. exd5 {[%clk 0:03:01]}  cxd5 {[%clk 0:02:57]} 10. O-O {[%clk 0:03:01]}  O-O {[%clk 0:02:54]} 11. Bd4 {[%clk 0:02:59]}  Nd7 {[%clk 0:02:45]} 12. Qg4 {[%clk 0:02:54]}  e5 {[%clk 0:02:30]} 13. Bxe5 {[%clk 0:02:44]}  Nxe5 {[%clk 0:02:31]} 14. Qxb4 {[%clk 0:02:44]}  Be6 {[%clk 0:02:17]} 15. Rad1 {[%clk 0:02:41]}  Rb8 {[%clk 0:02:17]} 16. Qa3 {[%clk 0:02:41]}  Qb6 {[%clk 0:02:15]} 17. b3 {[%clk 0:02:36]}  Rfc8 {[%clk 0:02:15]} 18. Na4 {[%clk 0:02:36]}  Qa5 {[%clk 0:02:12]} 19. Qd6 {[%clk 0:02:34]}  Nxd3 {[%clk 0:01:57]} 20. Rxd3 {[%clk 0:02:35]}  Qc7 {[%clk 0:01:54]} 21. Qxc7 {[%clk 0:02:29]}  Rxc7 {[%clk 0:01:55]} 22. c3 {[%clk 0:02:30]}  Rbc8 {[%clk 0:01:52]} 23. Rfd1 {[%clk 0:02:27]}  Kf8 {[%clk 0:01:51]} 24. f3 {[%clk 0:02:24]}  Ke7 {[%clk 0:01:51]} 25. Kf2 {[%clk 0:02:24]}  Rc6 {[%clk 0:01:50]} 26. Ke2 {[%clk 0:02:22]}  h5 {[%clk 0:01:50]} 27. Kd2 {[%clk 0:02:22]}  g5 {[%clk 0:01:47]} 28. Re1 {[%clk 0:02:18]}  Kf6 {[%clk 0:01:47]} 29. g3 {[%clk 0:02:12]}  a5 {[%clk 0:01:41]} 30. Rd4 {[%clk 0:02:10]}  Rd8 {[%clk 0:01:38]} 31. f4 {[%clk 0:02:10]}  g4 {[%clk 0:01:36]} 32. Re5 {[%clk 0:02:09]}  Rh8 {[%clk 0:01:35]} 33. Nb2 {[%clk 0:02:03]}  h4 {[%clk 0:01:34]} 34. Nd1 {[%clk 0:01:26]}  hxg3 {[%clk 0:01:34]} 35. hxg3 {[%clk 0:01:27]}  Rh3 {[%clk 0:01:33]} 36. Re3 {[%clk 0:01:26]}  Rc5 {[%clk 0:01:28]} 37. Nf2 {[%clk 0:01:23]}  Rh2 {[%clk 0:01:29]} 38. Re2 {[%clk 0:01:24]}  Kg6 {[%clk 0:01:17]} 39. a3 {[%clk 0:00:53]}  Rg2 {[%clk 0:01:16]} 40. Rd3 {[%clk 0:00:46]}  Bf5 {[%clk 0:01:16]} 41. Rde3 {[%clk 0:00:46]}  d4 {[%clk 0:00:58]} 42. cxd4 {[%clk 0:00:46]}  Rc2+ {[%clk 0:00:59]} 43. Kd1 {[%clk 0:00:38]}  Rxf2 {[%clk 0:00:59]} 44. Rxf2 {[%clk 0:00:30]}  Rxf2 {[%clk 0:01:00]} 45. d5 {[%clk 0:00:31]}  Bc2+ {[%clk 0:00:34]} 46. Ke1 {[%clk 0:00:30]}  Rf3 {[%clk 0:00:35]} 47. Ke2 {[%clk 0:00:22]}  Bxb3 {[%clk 0:00:24]} 48. d6 {[%clk 0:00:21]}  Rxe3+ {[%clk 0:00:23]} 49. Kxe3 {[%clk 0:00:22]}  Kf6 {[%clk 0:00:23]} 50. Kd4 {[%clk 0:00:21]}  Ke6 {[%clk 0:00:19]} 51. Kc5 {[%clk 0:00:21]}  Ba4 {[%clk 0:00:15]} 52. Kb6 {[%clk 0:00:20]}  Kxd6 {[%clk 0:00:14]} 53. Kxa5 {[%clk 0:00:21]}  Bd7 {[%clk 0:00:14]} 54. Kb6 {[%clk 0:00:21]}  Kd5 {[%clk 0:00:14]} 55. Kc7 {[%clk 0:00:22]}  Ba4 {[%clk 0:00:12]} 56. Kd8 {[%clk 0:00:22]}  Ke4 {[%clk 0:00:12]} 57. Ke7 {[%clk 0:00:23]}  f5 {[%clk 0:00:13]} 58. Kf6 {[%clk 0:00:23]}  Bc2 {[%clk 0:00:13]} 59. a4 {[%clk 0:00:23]}  Bxa4 {[%clk 0:00:13]} 60. Kg5 {[%clk 0:00:24]}  Bc2 {[%clk 0:00:14]} 61. Kh4 {[%clk 0:00:24]}  Kf3 {[%clk 0:00:15]} 62. Kg5 {[%clk 0:00:25]}  Kxg3 {[%clk 0:00:16]} 63. Kh5 {[%clk 0:00:25]}  Kxf4 {[%clk 0:00:17]} 64. Kh4 {[%clk 0:00:26]}  Kf3 {[%clk 0:00:16]} 65. Kg5 {[%clk 0:00:26]}  Kg3 {[%clk 0:00:17]} 66. Kh5 {[%clk 0:00:25]}  f4 {[%clk 0:00:18]} 67. Kg5 {[%clk 0:00:26]}  f3 {[%clk 0:00:19]} 68. Kh5 {[%clk 0:00:27]}  f2 {[%clk 0:00:19]} 69. Kg5 {[%clk 0:00:28]}  f1=Q {[%clk 0:00:20]} 70. Kh5 {[%clk 0:00:29]}  Qf5+ {[%clk 0:00:20]} 71. Kh6 {[%clk 0:00:28]}  Qg6# {[%clk 0:00:20]} 0-1


[Site "https://www.chess.com"]

[Event "Titled Tuesday Blitz December 7 2021"]
[White "Kalogeris, Ioannis"]
[Black "Dilmukhametov, Artur"]
[WhiteFideId "4239563"]
[BlackFideId "24179922"]
[WhiteElo "2287"]
[BlackElo "2272"]
[Result "1-0"]
[Round "03"]
[TimeControl "180+1"]
[Date "2021.12.07"]
[WhiteClock "0:00:24"]
[BlackClock "0:01:01"]

1. e4 {[%clk 0:03:00]}  e6 {[%clk 0:02:57]} 2. d4 {[%clk 0:03:00]}  d5 {[%clk 0:02:58]} 3. e5 {[%clk 0:02:59]}  c5 {[%clk 0:02:58]} 4. c3 {[%clk 0:02:59]}  Qb6 {[%clk 0:02:58]} 5. Nf3 {[%clk 0:02:58]}  Nc6 {[%clk 0:02:58]} 6. Bd3 {[%clk 0:02:58]}  cxd4 {[%clk 0:02:57]} 7. O-O {[%clk 0:02:57]}  Bd7 {[%clk 0:02:57]} 8. Re1 {[%clk 0:02:56]}  Nge7 {[%clk 0:02:54]} 9. h4 {[%clk 0:02:56]}  Nf5 {[%clk 0:02:42]} 10. Bxf5 {[%clk 0:02:39]}  exf5 {[%clk 0:02:43]} 11. cxd4 {[%clk 0:02:35]}  Be7 {[%clk 0:02:43]} 12. Nc3 {[%clk 0:02:34]}  Be6 {[%clk 0:02:44]} 13. Ne2 {[%clk 0:02:30]}  h6 {[%clk 0:02:39]} 14. Nf4 {[%clk 0:02:27]}  g5 {[%clk 0:02:37]} 15. Nh5 {[%clk 0:01:59]}  O-O-O {[%clk 0:02:34]} 16. b4 {[%clk 0:01:42]}  g4 {[%clk 0:02:33]} 17. b5 {[%clk 0:01:35]}  Qxb5 {[%clk 0:02:25]} 18. Nd2 {[%clk 0:01:32]}  Bxh4 {[%clk 0:02:24]} 19. Nb3 {[%clk 0:01:22]}  Kb8 {[%clk 0:02:12]} 20. a4 {[%clk 0:01:18]}  Qc4 {[%clk 0:01:47]} 21. Ba3 {[%clk 0:01:16]}  Be7 {[%clk 0:01:45]} 22. Bxe7 {[%clk 0:00:58]}  Nxe7 {[%clk 0:01:46]} 23. Nc5 {[%clk 0:00:55]}  Bc8 {[%clk 0:01:46]} 24. Rc1 {[%clk 0:00:51]}  Qb4 {[%clk 0:01:24]} 25. Na6+ {[%clk 0:00:50]}  bxa6 {[%clk 0:01:21]} 26. Rb1 {[%clk 0:00:49]}  a5 {[%clk 0:01:20]} 27. Qc2 {[%clk 0:00:43]}  Rd7 {[%clk 0:01:08]} 28. Qc5 {[%clk 0:00:35]}  Rb7 {[%clk 0:01:07]} 29. Rxb4 {[%clk 0:00:35]}  axb4 {[%clk 0:01:08]} 30. Rb1 {[%clk 0:00:32]}  Be6 {[%clk 0:01:04]} 31. Rxb4 {[%clk 0:00:31]}  Nc6 {[%clk 0:01:02]} 32. Qxc6 {[%clk 0:00:28]}  Rxb4 {[%clk 0:01:02]} 33. Qd6+ {[%clk 0:00:28]}  Ka8 {[%clk 0:01:02]} 34. Qxb4 {[%clk 0:00:28]}  Rc8 {[%clk 0:01:03]} 35. Nf4 {[%clk 0:00:26]}  h5 {[%clk 0:01:02]} 36. Qe7 {[%clk 0:00:26]}  h4 {[%clk 0:01:01]} 37. Qxh4 {[%clk 0:00:24]} 1-0


[Site "https://www.chess.com"]

[Event "Titled Tuesday Blitz December 7 2021"]
[White "Karacsonyi, Gellert"]
[Black "Kamsky, Gata"]
[WhiteFideId "764620"]
[BlackFideId "2000024"]
[WhiteElo "2215"]
[BlackElo "2645"]
[Result "0-1"]
[Round "03"]
[TimeControl "180+1"]
[Date "2021.12.07"]
[WhiteClock "0:00:23"]
[BlackClock "0:01:32"]

1. e4 {[%clk 0:03:00]}  c5 {[%clk 0:02:54]} 2. Nf3 {[%clk 0:03:00]}  e6 {[%clk 0:02:54]} 3. d4 {[%clk 0:03:01]}  cxd4 {[%clk 0:02:54]} 4. Nxd4 {[%clk 0:03:01]}  a6 {[%clk 0:02:54]} 5. c4 {[%clk 0:03:01]}  Nf6 {[%clk 0:02:49]} 6. Nc3 {[%clk 0:03:01]}  d6 {[%clk 0:02:50]} 7. Be2 {[%clk 0:03:01]}  b6 {[%clk 0:02:48]} 8. O-O {[%clk 0:03:00]}  Bb7 {[%clk 0:02:48]} 9. Qd3 {[%clk 0:03:00]}  Nbd7 {[%clk 0:02:48]} 10. b4 {[%clk 0:02:58]}  Be7 {[%clk 0:02:41]} 11. f4 {[%clk 0:02:57]}  O-O {[%clk 0:02:40]} 12. Bb2 {[%clk 0:02:55]}  Re8 {[%clk 0:02:35]} 13. a3 {[%clk 0:02:55]}  Bf8 {[%clk 0:02:34]} 14. g4 {[%clk 0:02:54]}  e5 {[%clk 0:02:33]} 15. Nf5 {[%clk 0:02:45]}  exf4 {[%clk 0:02:30]} 16. Rxf4 {[%clk 0:02:34]}  Ne5 {[%clk 0:02:26]} 17. Qg3 {[%clk 0:02:06]}  g6 {[%clk 0:02:21]} 18. Ne3 {[%clk 0:01:54]}  Bg7 {[%clk 0:02:19]} 19. Ned5 {[%clk 0:01:52]}  Nfd7 {[%clk 0:02:16]} 20. Raf1 {[%clk 0:01:48]}  Rc8 {[%clk 0:02:13]} 21. Qf2 {[%clk 0:01:47]}  Rf8 {[%clk 0:02:10]} 22. h4 {[%clk 0:01:45]}  Nxc4 {[%clk 0:02:03]} 23. Bxc4 {[%clk 0:01:43]}  Rxc4 {[%clk 0:02:03]} 24. Rxf7 {[%clk 0:01:42]}  Rxf7 {[%clk 0:01:39]} 25. Qxf7+ {[%clk 0:01:43]}  Kh8 {[%clk 0:01:40]} 26. Rf3 {[%clk 0:00:23]}  Ne5 {[%clk 0:01:32]} 0-1


[Site "https://www.chess.com"]